fUST/lending_fUST_20240917
["ID","MTS","AMOUNT","RATE_DAILY","PERIOD"]
[338367540,1726567238374,500.0,0.00025,60]
[338367545,1726567238752,1132.22,0.00025,60]
[338367554,1726567239094,2834.72,0.00025,60]
[338367556,1726567239200,500.0,0.00025,60]
[338367570,1726567240181,1363.1,0.00025,60]
[338367574,1726567240652,226.0788305,0.00025,60]
[338367580,1726567241172,500.0,0.00025,60]
[338367589,1726567241891,500.0,0.00025,60]
[338367595,1726567242485,919.25,0.00025,60]
[338367597,1726567242585,500.0,0.00025,60]
[338367598,1726567242652,500.0,0.00025,60]
[338367603,1726567243410,500.0,0.00025,60]
[338367606,1726567244057,500.0,0.00025,60]
[338367613,1726567244595,500.0,0.00025,60]
[338367620,1726567246323,500.0,0.00025,60]
[338367621,1726567246711,500.0,0.00025,60]
[338367629,1726567247577,500.0,0.00025,60]
[338367642,1726567248694,500.0,0.00025,60]
[338367644,1726567248743,886.09,0.00025,60]
[338367645,1726567248954,500.0,0.00025,60]
[338367648,1726567249436,1093.32,0.00025,60]
[338367657,1726567250047,500.0,0.00025,60]
[338367661,1726567250525,500.0,0.00025,60]
[338367663,1726567250726,500.0,0.00025,60]
[338367676,1726567251447,1220.87,0.00025,60]
[338367678,1726567251706,500.0,0.00025,60]
[338367680,1726567251920,500.0,0.00025,60]
[338367697,1726567253271,500.0,0.00025,60]
[338367700,1726567253415,500.0,0.00025,60]
[338367705,1726567253766,1304.28,0.00025,60]
[338367709,1726567254095,2272.73,0.00025,60]
[338367713,1726567254246,599.58,0.00025,60]
[338367716,1726567254441,500.0,0.00025,60]
[338367718,1726567254486,9940.51,0.00025,60]
[338367724,1726567254819,500.0,0.00025,60]
[338367726,1726567254908,518.44,0.00025,60]
[338367727,1726567255008,951.21,0.00025,60]
[338367738,1726567255708,500.0,0.00025,60]
[338367744,1726567256281,500.0,0.00025,60]
[338367749,1726567256760,500.0,0.00025,60]
[338367757,1726567257280,500.0,0.00025,60]
[338367758,1726567257367,1322.35,0.00025,60]
[338367759,1726567257581,500.0,0.00025,60]
[338367765,1726567257962,500.0,0.00025,60]
[338367767,1726567258050,500.0,0.00025,60]
[338367784,1726567259093,500.0,0.00025,60]
[338367788,1726567259355,500.0,0.00025,60]
[338367790,1726567259552,500.0,0.00025,60]
[338367799,1726567260338,500.0,0.00025,60]
[338367802,1726567260465,500.0,0.00025,60]
[338367828,1726567262389,734.52,0.00025,60]
[338367833,1726567262592,500.0,0.00025,60]
[338367838,1726567262854,972.0,0.00025,60]
[338367849,1726567263593,500.0,0.00025,60]
[338367855,1726567264070,2935.53,0.00025,60]
[338367875,1726567265504,1222.09,0.00025,60]
[338367885,1726567266144,500.0,0.00025,60]
[338367889,1726567266444,500.0,0.00025,60]
[338367893,1726567267506,500.0,0.00025,60]
[338367894,1726567267557,612.9,0.00025,60]
[338367896,1726567267692,719.24,0.00025,60]
[338367899,1726567267795,500.0,0.00025,60]
[338367903,1726567268011,500.0,0.00025,60]
[338367918,1726567268913,529.79,0.00025,60]
[338367922,1726567269174,626.54,0.00025,60]
[338367924,1726567269363,500.0,0.00025,60]
[338367926,1726567269813,1871.28,0.00025,60]
[338367931,1726567270067,2272.47,0.00025,60]
[338367940,1726567271000,500.0,0.00025,60]
[338367956,1726567272912,500.0,0.00025,60]
[338367958,1726567273286,746.96,0.00025,60]
[338367963,1726567273974,500.0,0.00025,60]
[338367983,1726567275632,500.0,0.00025,60]
[338367986,1726567275746,500.0,0.00025,60]
[338367988,1726567275804,500.0,0.00025,60]
[338368005,1726567277044,1556.56,0.00025,60]
[338368008,1726567277278,500.0,0.00025,60]
[338368014,1726567277610,1546.55,0.00025,60]
[338368015,1726567278083,500.0,0.00025,60]
[338368016,1726567278257,500.0,0.00025,60]
[338368026,1726567278738,2860.51,0.00025,60]
[338368034,1726567279082,500.0,0.00025,60]
[338368038,1726567279377,1326.0,0.00025,60]
[338368042,1726567279545,500.0,0.00025,60]
[338368044,1726567279594,500.0,0.00025,60]
[338368046,1726567280079,500.0,0.00025,60]
[338368049,1726567280393,728.77,0.00025,60]
[338368052,1726567280538,2525.18,0.00025,60]
[338368059,1726567280831,500.0,0.00025,60]
[338368087,1726567282346,500.0,0.00025,60]
[338368095,1726567282894,1613.34,0.00025,60]
[338368114,1726567284408,967.87,0.00025,60]
[338368115,1726567284478,500.0,0.00025,60]
[338368127,1726567285860,500.0,0.00025,60]
[338368134,1726567286258,859.14,0.00025,60]
[338368135,1726567286399,1902.27,0.00025,60]
[338368143,1726567287019,500.0,0.00025,60]
[338368147,1726567287286,500.0,0.00025,60]
[338368153,1726567287615,500.86038063,0.00025,60]
[338368157,1726567287958,500.0,0.00025,60]
[338368158,1726567288013,507.7,0.00025,60]
[338368162,1726567288946,778.41,0.00025,60]
[338368163,1726567289023,2136.96,0.00025,60]
[338368174,1726567289629,19182.16,0.00025,60]
[338368176,1726567289686,167.37057098,0.00025,60]
[338368181,1726567289919,500.0,0.00025,60]
[338368185,1726567290058,500.0,0.00025,60]
[338368187,1726567290113,914.23,0.00025,60]
[338368190,1726567290310,2056.04,0.00025,60]
[338368193,1726567290536,321.26,0.00010959,2]
[338368195,1726567290794,554.05,0.00025,60]
[338368199,1726567291154,4222.91,0.00025,60]
[338368201,1726567291242,500.0,0.00025,60]
[338368215,1726567292056,501.27389156,0.00025,60]
[338368228,1726567292978,565.33,0.00025,60]
[338368230,1726567293076,500.0,0.00025,60]
[338368240,1726567294059,500.0,0.00025,60]
[338368261,1726567295453,500.0,0.00025,60]
[338368266,1726567295647,2417.73,0.00025,60]
[338368268,1726567295697,682.68,0.00025,60]
[338368270,1726567295754,1168.9,0.00025,60]
[338368276,1726567296095,801.02,0.00025,60]
[338368282,1726567296518,1263.34,0.00025,60]
[338368289,1726567296902,500.0,0.00025,60]
[338368302,1726567297754,647.85138619,0.00025,60]
[338368310,1726567298394,2562.97,0.00025,60]
[338368314,1726567298548,696.76,0.00025,60]
[338368316,1726567298672,500.0,0.00025,60]
[338368322,1726567299102,500.0,0.00025,60]
[338368323,1726567299510,1109.23,0.00025,60]
[338368333,1726567300320,500.0,0.00025,60]
[338368342,1726567301035,267.72,0.00010959,2]
[338368347,1726567301411,363.68484151,0.00025,60]
[338368352,1726567301745,4431.29,0.00025,60]
[338368353,1726567301796,634.72,0.00025,60]
[338368354,1726567302147,4250.55,0.00025,60]
[338368364,1726567302634,500.0,0.00025,60]
[338368378,1726567303445,3113.34,0.00025,60]
[338368387,1726567303971,500.0,0.00025,60]
[338368410,1726567305527,659.65,0.00025,60]
[338368412,1726567305637,500.0,0.00025,60]
[338368426,1726567306696,627.57,0.00025,60]
[338368434,1726567307418,500.0,0.00025,60]
[338368435,1726567307518,912.07,0.00025,60]
[338368446,1726567308500,1661.61,0.00025,60]
[338368451,1726567308942,500.0,0.00025,60]
[338368466,1726567310348,1055.72,0.00025,60]
[338368468,1726567310502,673.29,0.00025,60]
[338368469,1726567310659,500.0,0.00025,60]
[338368470,1726567310707,500.0,0.00025,60]
[338368474,1726567311071,908.14,0.00025,60]
[338368476,1726567311142,500.0,0.00025,60]
[338368485,1726567311758,189.24705816,0.00025,60]
[338368486,1726567311795,223.1,0.00010959,2]
[338368487,1726567312067,500.0,0.00025,60]
[338368500,1726567312855,795.1,0.00025,60]
[338368512,1726567313873,1065.55,0.00025,60]
[338368517,1726567314271,1619.71,0.00025,60]
[338368545,1726567316216,10968.2,0.00025,60]
[338368565,1726567317586,817.36,0.00025,60]
[338368574,1726567318050,927.54,0.00025,60]
[338368588,1726567318925,500.0,0.00025,60]
[338368601,1726567319771,500.0,0.00025,60]
[338368603,1726567319916,1452.05,0.00025,60]
[338368620,1726567321479,500.0,0.00025,60]
[338368623,1726567321565,584.61,0.00025,60]
[338368638,1726567322320,185.92,0.00010959,2]
[338368644,1726567322664,500.0,0.00025,60]
[338368647,1726567322872,500.0,0.00025,60]
[338368655,1726567323316,273.12607712,0.00025,60]
[338368662,1726567324743,500.0,0.00025,60]
[338368663,1726567325680,1134.29,0.00025,60]
[338368664,1726567326430,916.69,0.00025,60]
[338368665,1726567326517,1408.41,0.00025,60]
[338368666,1726567326586,500.0,0.00025,60]
[338368667,1726567326687,293.95205187,0.00025,60]
[338368668,1726567326863,3736.88,0.00025,60]
[338368669,1726567327174,500.0,0.00025,60]
[338368670,1726567327977,2447.25,0.00025,60]
[338368671,1726567328156,1000.0,0.00025,60]
[338368672,1726567328345,360.12570904,0.00025,60]
[338368673,1726567330269,5915.12,0.00025,60]
[338368674,1726567331246,500.0,0.00025,60]
[338368675,1726567332758,500.0,0.00025,60]
[338368676,1726567332844,154.93,0.00010959,2]
[338368677,1726567332959,502.77698112,0.00025,60]
[338368678,1726567333508,500.0,0.00025,60]
[338368679,1726567333556,500.0,0.00025,60]
[338368680,1726567333620,1723.33,0.00025,60]
[338368681,1726567334235,500.0,0.00025,60]
[338368682,1726567334625,500.0,0.00025,60]
[338368683,1726567334680,162.521938,0.00013699,2]
[338368684,1726567335266,998.59,0.00025,60]
[338368686,1726567337029,532.84,0.00025,60]
[338368687,1726567338983,500.0,0.00025,60]
[338368688,1726567339035,500.0,0.00025,60]
[338368689,1726567341809,500.0,0.00025,60]
[338368690,1726567341870,500.0,0.00025,60]
[338368691,1726567343398,774.68,0.00010959,2]
[338368692,1726567343970,734.33,0.00025,60]
[338368693,1726567344351,2063.47,0.00025,60]
[338368694,1726567344444,500.0,0.00025,60]
[338368695,1726567344503,2722.28,0.00025,60]
[338368696,1726567344836,16095.81,0.00025,60]
[338368697,1726567345070,500.0,0.00025,60]
[338368698,1726567346131,547.58,0.00025,60]
[338368699,1726567346595,2740.31,0.00025,60]
[338368701,1726567347904,706.72,0.00025,60]
[338368702,1726567348905,1699.09,0.00025,60]
[338368703,1726567349837,500.0,0.00025,60]
[338368704,1726567350637,2716.61,0.00025,60]
[338368705,1726567350881,500.0,0.00025,60]
[338368706,1726567352128,6366.38,0.00025,60]
[338368707,1726567352343,554.28721328,0.00025,60]
[338368709,1726567353497,500.0,0.00025,60]
[338368710,1726567353928,500.0,0.00025,60]
[338368711,1726567355833,1476.03,0.00025,60]
[338368712,1726567356076,540.04,0.00025,60]
[338368713,1726567356152,500.0,0.00025,60]
[338368714,1726567356232,616.95,0.00025,60]
[338368715,1726567356283,500.0,0.00025,60]
[338368716,1726567356327,500.0,0.00025,60]
[338368717,1726567357044,1185.21,0.00025,60]
[338368718,1726567357239,500.0,0.00025,60]
[338368719,1726567358015,500.0,0.00025,60]
[338368720,1726567360472,500.0,0.00025,60]
[338368721,1726567360555,500.0,0.00025,60]
[338368723,1726567361214,500.0,0.00025,60]
[338368724,1726567361482,2413.56,0.00025,60]
[338368725,1726567363209,1471.1,0.00025,60]
[338368726,1726567364668,610.18,0.00025,60]
[338368727,1726567365702,716.99,0.00025,60]
[338368728,1726567367441,500.0,0.00025,60]
[338368729,1726567367524,1591.03,0.00025,60]
[338368730,1726567368602,151.00820477,0.00025,60]
[338368731,1726567368657,530.45043423,0.00025,60]
[338368732,1726567369023,725.16,0.00025,60]
[338368733,1726567369284,1390.7,0.00025,60]
[338368734,1726567370065,500.0,0.00025,60]
[338368735,1726567370247,500.0,0.00025,60]
[338368736,1726567370646,502.89874177,0.00025,60]
[338368738,1726567371428,2474.62,0.00025,60]
[338368739,1726567372739,556.06,0.00025,60]
[338368740,1726567373287,500.0,0.00025,60]
[338368741,1726567373552,2919.48,0.00025,60]
[338368742,1726567373604,1487.88,0.00025,60]
[338368743,1726567374234,685.99,0.00025,60]
[338368744,1726567374290,500.0,0.00025,60]
[338368745,1726567374984,572.34243532,0.00025,60]
[338368748,1726567377406,500.0,0.00025,60]
[338368749,1726567377479,500.0,0.00025,60]
[338368750,1726567377902,500.0,0.00025,60]
[338368751,1726567378346,689.27,0.00025,60]
[338368752,1726567379775,500.0,0.00025,60]
[338368753,1726567380441,2991.15,0.00025,60]
[338368754,1726567381112,794.33,0.00025,60]
[338368755,1726567381405,2789.82,0.00025,60]
[338368756,1726567381659,3640.51,0.00025,60]
[338368757,1726567381864,500.0,0.00025,60]
[338368758,1726567384922,2561.21,0.00025,60]
[338368759,1726567385319,914.01,0.00025,60]
[338368760,1726567386513,595.13,0.00025,60]
[338368761,1726567387140,542.17,0.00025,60]
[338368762,1726567387524,500.0,0.00025,60]
[338368763,1726567387818,500.0,0.00025,60]
[338368764,1726567388563,1322.7,0.00025,60]
[338368765,1726567389683,500.0,0.00025,60]
[338368766,1726567390552,1096.65,0.00025,60]
[338368767,1726567390918,500.0,0.00025,60]
[338368768,1726567390997,847.31,0.00025,60]
[338368769,1726567391950,500.0,0.00025,60]
[338368770,1726567392086,500.0,0.00025,60]
[338368771,1726567393017,2160.0,0.00025,60]
[338368772,1726567393679,519.81,0.00025,60]
[338368773,1726567393817,500.0,0.00025,60]
[338368774,1726567394227,500.0,0.00025,60]
[338368775,1726567396575,620.36,0.00025,60]
[338368776,1726567396875,1204.31,0.00025,60]
[338368777,1726567397996,500.0,0.00025,60]
[338368778,1726567398189,500.0,0.00025,60]
[338368779,1726567400129,1043.14,0.00025,60]
[338368780,1726567400282,500.0,0.00025,60]
[338368781,1726567400754,2419.96,0.00025,60]
[338368782,1726567402356,2416.04,0.00025,60]
[338368783,1726567404150,3090.51,0.00025,60]
[338368784,1726567404317,646.17808849,0.00025,60]
[338368785,1726567404470,1069.32,0.00025,60]
[338368786,1726567405097,512.16347041,0.00025,60]
[338368787,1726567405257,500.0,0.00025,60]
[338368788,1726567405673,958.26,0.00025,60]
[338368789,1726567406724,500.0,0.00025,60]
[338368790,1726567407466,19875.07,0.00025,60]
[338368791,1726567407518,507.15039992,0.00025,60]
[338368792,1726567411090,553.3,0.00025,60]
[338368793,1726567411513,500.0,0.00025,60]
[338368794,1726567412368,500.0,0.00025,60]
[338368795,1726567412534,1484.96,0.00025,60]
[338368796,1726567413893,500.0,0.00025,60]
[338368797,1726567414315,1253.11,0.00025,60]
[338368798,1726567415337,500.0,0.00025,60]
[338368799,1726567417013,979.33,0.00025,60]
[338368800,1726567417842,500.0,0.00025,60]
[338368801,1726567418267,500.0,0.00025,60]
[338368802,1726567418777,508.0406016,0.00025,60]
[338368803,1726567419108,500.0,0.00025,60]
[338368804,1726567419244,500.0,0.00025,60]
[338368805,1726567420554,500.0,0.00025,60]
[338368806,1726567421230,500.0,0.00025,60]
[338368807,1726567422380,500.0,0.00025,60]
[338368808,1726567422981,500.0,0.00025,60]
[338368809,1726567423032,806.83,0.00025,60]
[338368810,1726567423237,892.17,0.00025,60]
[338368811,1726567423293,500.0,0.00025,60]
[338368812,1726567423403,642.15,0.00025,60]
[338368813,1726567423684,500.0,0.00025,60]
[338368814,1726567424967,749.06,0.00025,60]
[338368815,1726567425039,585.19,0.00025,60]
[338368816,1726567425240,501.27083728,0.00025,60]
[338368817,1726567425292,323.15941287,0.00025,60]
[338368818,1726567427847,500.0,0.00025,60]
[338368819,1726567429056,500.0,0.00025,60]
[338368820,1726567430414,3645.2,0.00025,60]
[338368821,1726567430527,513.15,0.00025,60]
[338368822,1726567430670,500.0,0.00025,60]
[338368823,1726567431134,500.0,0.00025,60]
[338368825,1726567433350,500.0,0.00025,60]
[338368826,1726567433568,327.81829881,0.00025,60]
[338368827,1726567433634,500.0,0.00025,60]
[338368828,1726567433776,1047.76,0.00025,60]
[338368829,1726567434762,3422.4,0.00025,60]
[338368830,1726567435479,500.0,0.00025,60]
[338368831,1726567435531,500.0,0.00025,60]
[338368832,1726567436309,3549.02,0.00025,60]
[338368833,1726567440399,510.85665745,0.00025,60]
[338368834,1726567440511,500.0,0.00025,60]
[338368835,1726567442136,502.96243821,0.00025,60]
[338368836,1726567442348,1482.11,0.00025,60]
[338368837,1726567443794,500.0,0.00025,60]
[338368838,1726567443848,873.17,0.00025,60]
[338368839,1726567444011,500.0,0.00025,60]
[338368840,1726567444101,500.0,0.00025,60]
[338368841,1726567444740,500.0,0.00025,60]
[338368842,1726567445681,561.6,0.00025,60]
[338368843,1726567445768,190.94395794,0.00025,60]
[338368844,1726567447795,2767.08,0.00025,60]
[338368845,1726567447889,741.95,0.00025,60]
[338368846,1726567449384,850.99,0.00025,60]
[338368847,1726567450319,500.0,0.00025,60]
[338368848,1726567451292,654.14,0.00025,60]
[338368849,1726567452669,1980.03,0.00025,60]
[338368850,1726567454074,500.0,0.00025,60]
[338368851,1726567454945,614.43,0.00025,60]
[338368852,1726567455138,500.0,0.00025,60]
[338368853,1726567455677,500.0,0.00025,60]
[338368854,1726567458034,1618.78,0.00025,60]
[338368855,1726567458084,2972.63,0.00025,60]
[338368856,1726567458353,500.0,0.00025,60]
[338368857,1726567459593,500.0,0.00025,60]
[338368858,1726567460604,500.0,0.00025,60]
[338368859,1726567460656,502.63285672,0.00025,60]
[338368860,1726567461051,500.0,0.00025,60]
[338368861,1726567463199,500.0,0.00025,60]
[338368862,1726567464434,500.0,0.00025,60]
[338368863,1726567464575,500.0,0.00025,60]
[338368864,1726567465261,1156.53,0.00025,60]
[338368865,1726567465966,500.73367531,0.00025,60]
[338368866,1726567466110,500.0,0.00025,60]
[338368867,1726567466770,500.0,0.00025,60]
[338368868,1726567468178,500.0,0.00025,60]
[338368869,1726567469920,9526.32,0.00025,60]
[338368870,1726567471150,1119.56,0.00025,60]
[338368871,1726567471211,2059.11,0.00025,60]
[338368872,1726567471920,500.0,0.00025,60]
[338368873,1726567474780,500.0,0.00025,60]
[338368874,1726567474961,500.0,0.00025,60]
[338368875,1726567475346,746.2,0.00025,60]
[338368876,1726567475944,500.0,0.00025,60]
[338368877,1726567478101,17983.77,0.00025,60]
[338368878,1726567479513,628.71,0.00025,60]
[338368879,1726567481004,500.0,0.00025,60]
[338368880,1726567481912,4046.95,0.00025,60]
[338368881,1726567485037,500.0,0.00025,60]
[338368882,1726567485128,500.0,0.00025,60]
[338368883,1726567486367,500.0,0.00025,60]
[338368884,1726567486454,500.0,0.00025,60]
[338368885,1726567486502,500.0,0.00025,60]
[338368886,1726567486699,500.0,0.00025,60]
[338368887,1726567487130,500.0,0.00025,60]
[338368888,1726567487906,500.0,0.00025,60]
[338368889,1726567488071,829.49,0.00025,60]
[338368890,1726567489096,500.0,0.00025,60]
[338368891,1726567489555,500.0,0.00025,60]
[338368892,1726567489728,542.43,0.00025,60]
[338368893,1726567490108,1063.01,0.00025,60]
[338368894,1726567490634,707.56,0.00025,60]
[338368895,1726567490708,4402.3,0.00025,60]
[338368896,1726567491585,500.0,0.00025,60]
[338368897,1726567493476,500.0,0.00025,60]
[338368898,1726567493531,500.05,0.00025,60]
[338368899,1726567494681,500.0,0.00025,60]
[338368900,1726567494775,944.07,0.00025,60]
[338368901,1726567495423,3554.92,0.00025,60]
[338368902,1726567495480,2047.92,0.00025,60]
[338368903,1726567495550,6101.12,0.00025,60]
[338368904,1726567495698,1260.31,0.00025,60]
[338368905,1726567498620,1592.38,0.00025,60]
[338368906,1726567499689,500.0,0.00025,60]
[338368907,1726567500002,500.0,0.00025,60]
[338368908,1726567500369,1069.91,0.00025,60]
[338368909,1726567500456,858.37,0.00025,60]
[338368910,1726567501364,4073.44,0.00025,60]
[338368911,1726567502135,1210.7,0.00025,60]
[338368912,1726567502870,1546.12,0.00025,60]
[338368913,1726567504395,849.17,0.00025,60]
[338368914,1726567504466,1135.85,0.00025,60]
[338368915,1726567505490,712.29,0.00025,60]
[338368916,1726567509030,500.0,0.00025,60]
[338368917,1726567509115,550.02,0.00025,60]
[338368918,1726567510928,5668.66,0.00025,60]
[338368919,1726567511472,500.0,0.00025,60]
[338368920,1726567511710,567.53857787,0.00025,60]
[338368921,1726567513269,500.0,0.00025,60]
[338368922,1726567513491,500.0,0.00025,60]
[338368923,1726567517269,500.0,0.00025,60]
[338368924,1726567518133,813.84,0.00025,60]
[338368925,1726567519128,500.0,0.00025,60]
[338368926,1726567520806,500.0,0.00025,60]
[338368928,1726567522038,500.0,0.00025,60]
[338368929,1726567522222,537.23,0.00025,60]
[338368930,1726567522472,1192.75,0.00025,60]
[338368931,1726567522804,500.0,0.00025,60]
[338368932,1726567523477,500.0,0.00025,60]
[338368933,1726567523789,500.0,0.00025,60]
[338368934,1726567525710,500.0,0.00025,60]
[338368935,1726567526287,15425.16,0.00025,60]
[338368936,1726567526361,359.79363938,0.00025,60]
[338368937,1726567527960,500.0,0.00025,60]
[338368938,1726567528089,500.0,0.00025,60]
[338368939,1726567529341,500.0,0.00025,60]
[338368941,1726567530230,506.89752138,0.00025,60]
[338368942,1726567530940,500.0,0.00025,60]
[338368943,1726567531036,500.0,0.00025,60]
[338368944,1726567531796,250.0,0.00025,60]
[338368945,1726567532300,500.0,0.00025,60]
[338368946,1726567532625,500.0,0.00025,60]
[338368948,1726567532769,2178.03,0.00025,60]
[338368949,1726567533068,851.14,0.00025,60]
[338368950,1726567533956,1014.22,0.00025,60]
[338368951,1726567534395,665.6,0.00025,60]
[338368952,1726567534462,500.0,0.00025,60]
[338368953,1726567535470,637.30538366,0.00025,60]
[338368954,1726567536222,1391.55,0.00025,60]
[338368955,1726567537075,500.0,0.00025,60]
[338368956,1726567537434,1766.73,0.00025,60]
[338368957,1726567538300,500.0,0.00025,60]
[338368958,1726567539241,500.0,0.00025,60]
[338368959,1726567541222,500.0,0.00025,60]
[338368960,1726567542803,3672.2,0.00025,60]
[338368961,1726567543045,500.0,0.00025,60]
[338368962,1726567545087,817.88,0.00025,60]
[338368963,1726567547264,500.0,0.00025,60]
[338368964,1726567548367,500.0,0.00025,60]
[338368965,1726567548958,500.0,0.00025,60]
[338368966,1726567549199,517.54,0.00025,60]
[338368967,1726567549441,500.0,0.00025,60]
[338368968,1726567549678,1993.31,0.00025,60]
[338368969,1726567551243,500.0,0.00025,60]
[338368970,1726567554155,1628.29,0.00025,60]
[338368971,1726567554550,500.0,0.00025,60]
[338368972,1726567554695,338.82932774,0.00025,60]
[338368974,1726567557621,1411.31,0.00025,60]
[338368975,1726567557674,848.75,0.00025,60]
[338368976,1726567557766,615.39,0.00025,60]
[338368977,1726567558658,500.0,0.00025,60]
[338368978,1726567558930,500.0,0.00025,60]
[338368979,1726567559222,500.0,0.00025,60]
[338368980,1726567559659,921.07,0.00025,60]
[338368981,1726567561494,500.0,0.00025,60]
[338368982,1726567561679,500.0,0.00025,60]
[338368983,1726567563235,2177.79,0.00025,60]
[338368984,1726567565144,1651.53,0.00025,60]
[338368985,1726567565517,2797.83,0.00025,60]
[338368986,1726567565652,500.0,0.00025,60]
[338368987,1726567568035,1276.01,0.00025,60]
[338368988,1726567568101,570.82,0.00025,60]
[338368989,1726567568168,531.44584628,0.00025,60]
[338368990,1726567568816,501.38120142,0.00025,60]
[338368991,1726567570888,612.28074698,0.00025,60]
[338368992,1726567571498,3279.8,0.00025,60]
[338368993,1726567572548,508.24782512,0.00025,60]
[338368994,1726567572924,180.70082576,0.00025,60]
[338368995,1726567573363,500.0,0.00025,60]
[338368996,1726567573415,500.0,0.00025,60]
[338368997,1726567573474,500.0,0.00025,60]
[338368998,1726567573729,875.93,0.00025,60]
[338368999,1726567573777,278.99901308,0.00025,60]
[338369000,1726567574506,500.0,0.00025,60]
[338369001,1726567574598,500.0,0.00025,60]
[338369002,1726567575065,639.84,0.00025,60]
[338369003,1726567575331,500.0,0.00025,60]